bitfinex/quotes_SOLUSD_20241013
["timestamp","ask_amount","ask_price","bid_price","bid_amount"]
[1728813955540,23.776884,147.87,147.82,2.51157972]
[1728813955739,23.776884,147.87,147.83,2.51157972]
[1728813956060,23.776884,147.87,147.82,2.51157972]
[1728813956249,23.776884,147.87,147.79,10.3344]
[1728813956250,23.776884,147.87,147.83,2.51157972]
[1728813956431,23.776884,147.87,147.82,5.86346081]
[1728813956631,23.776884,147.87,147.83,2.51157972]
[1728813956848,23.776884,147.87,147.81,5.86346081]
[1728813957055,23.776884,147.87,147.82,5.86346081]
[1728813957262,23.776884,147.87,147.83,2.51157972]
[1728813957560,23.776884,147.87,147.81,5.86346081]
[1728813957763,23.776884,147.87,147.82,5.86346081]
[1728813957943,23.776884,147.87,147.83,2.51157972]
[1728813958147,23.776884,147.87,147.81,5.86346081]
[1728813958464,23.776884,147.87,147.82,5.86346081]
[1728813958658,23.776884,147.87,147.83,2.51157972]
[1728813958957,23.776884,147.87,147.81,5.86346081]
[1728813959160,23.776884,147.87,147.82,5.86346081]
[1728813959458,23.776884,147.87,147.83,5.86346081]
[1728813959757,23.776884,147.87,147.8,5.86346081]
[1728813959957,23.776884,147.87,147.81,5.86346081]
[1728813960261,23.776884,147.87,147.82,5.86346081]
[1728813960553,23.776884,147.87,147.83,5.86346081]
[1728813960756,23.776884,147.87,147.8,5.86346081]
[1728813960963,23.776884,147.87,147.81,2.51157972]
[1728813961138,30.539584,147.87,147.82,2.51189837]
[1728813961329,30.539584,147.87,147.83,2.51189837]
[1728813961961,30.539584,147.87,147.84,3.35701769]
[1728813962167,30.539584,147.87,147.84,5.86891606]
[1728813962336,30.539584,147.87,147.8,5.86891606]
[1728813962654,30.539584,147.87,147.81,5.86891606]
[1728813962834,30.539584,147.87,147.82,5.86891606]
[1728813963033,30.539584,147.87,147.83,5.86891606]
[1728813963247,30.539584,147.87,147.84,5.86891606]
[1728813963449,30.539584,147.87,147.8,5.87259335]
[1728813963644,30.539584,147.87,147.81,5.87259335]
[1728813963852,30.539584,147.87,147.82,5.87259335]
[1728813964051,30.539584,147.87,147.83,5.87259335]
[1728813964254,30.539584,147.87,147.84,3.36069498]
[1728813964462,30.539584,147.87,147.79,10.3344]
[1728813964648,30.539584,147.87,147.8,2.51282654]
[1728813964841,30.539584,147.87,147.79,10.3344]
[1728813965156,30.539584,147.87,147.81,3.3614123]
[1728813965359,30.539584,147.87,147.82,2.51286614]
[1728813965664,30.539584,147.87,147.83,5.87427844]
[1728813965838,30.539584,147.87,147.84,3.3614123]
[1728813966735,30.539584,147.87,147.82,5.87427844]
[1728813966953,30.539584,147.87,147.83,5.87427844]
[1728813967147,30.539584,147.87,147.84,3.3614123]
[1728813967343,30.539584,147.87,147.82,2.51286614]
[1728813967643,30.539584,147.87,147.83,5.87428163]
[1728813967848,30.539584,147.87,147.84,3.36141549]
[1728813968058,23.776884,147.87,147.82,2.51345673]
[1728813968261,30.539584,147.87,147.83,2.51374065]
[1728813968451,30.539584,147.87,147.83,3.36157203]
[1728813969148,30.539584,147.87,147.84,3.36157203]
[1728813969362,30.539584,147.87,147.8,2.51398245]
[1728813969668,30.539584,147.87,147.81,5.87534511]
[1728813969968,30.539584,147.87,147.82,5.87534511]
[1728813970173,30.539584,147.87,147.83,5.87534511]
[1728813970355,30.539584,147.87,147.79,1.3530464]
[1728813970356,30.539584,147.87,147.84,5.87534511]
[1728813970667,30.539584,147.87,147.8,2.51398245]
[1728813970866,30.539584,147.87,147.81,5.87499694]
[1728813971162,30.539584,147.87,147.82,5.87499694]
[1728813971465,30.539584,147.87,147.83,5.87499694]
[1728813971665,30.539584,147.87,147.84,5.87499694]
[1728813971862,30.539584,147.87,147.79,1.3530464]
[1728813972243,30.539584,147.87,147.8,5.87561305]
[1728813972445,30.539584,147.87,147.81,2.51459085]
[1728813972653,30.539584,147.87,147.82,5.87561305]
[1728813972872,30.539584,147.87,147.83,2.51459085]
[1728813973063,30.539584,147.87,147.84,2.51459085]
[1728813973260,30.539584,147.87,147.79,1.3530464]
[1728813973561,30.539584,147.87,147.8,5.8764674]
[1728813973768,30.539584,147.87,147.81,5.8764674]
[1728813973973,30.539584,147.87,147.82,5.8764674]
[1728813974170,23.776884,147.87,147.83,5.8764674]
[1728813974343,23.776884,147.87,147.79,1.3530464]
[1728813974344,21.8033,147.88,147.84,5.8764674]
[1728813974542,16.8995,147.94,147.85,5.8764674]
[1728813974543,23.1545,147.92,147.85,5.8764674]
[1728813974754,23.1545,147.92,147.86,7.22909847]
[1728813974755,6.593,147.92,147.86,7.22909847]
[1728813974945,6.593,147.92,147.87,5.8764674]
[1728813975183,29.9132,147.96,147.88,5.8764674]
[1728813975350,29.9132,147.96,147.83,1.3524072]
[1728813975351,6.759,147.95,147.89,5.8764674]
[1728813975554,6.759,147.95,147.83,1.3524072]
[1728813975555,6.759,147.95,147.85,20.0]
[1728813975742,6.759,147.95,147.86,7.22722766]
[1728813976076,23.776884,147.94,147.87,5.87482177]
[1728813976275,23.776884,147.94,147.88,5.87482177]
[1728813976448,23.776884,147.94,147.89,2.51392339]
[1728813976649,23.776884,147.94,147.88,3.36089838]
[1728813976957,23.776884,147.94,147.89,2.51358255]
[1728813977274,23.776884,147.94,147.85,3.36089838]
[1728813977461,23.776884,147.94,147.86,7.22654218]
[1728813977773,23.776884,147.94,147.86,5.87413733]
[1728813977943,6.7596,147.94,147.86,5.87413733]
[1728813978150,6.76,147.93,147.86,3.36089838]
[1728813978348,6.76,147.93,147.87,3.36089838]
[1728813979171,6.76,147.93,147.83,3.36089838]
[1728813979375,6.76,147.93,147.84,1.35246869]
[1728813979576,23.776884,147.93,147.84,1.35246869]
[1728813979870,23.776884,147.93,147.85,5.8627172]
[1728813980057,23.776884,147.93,147.86,3.86414186]
[1728813980258,6.7595,147.94,147.87,2.51167754]
[1728813980453,6.7595,147.94,147.88,2.51167754]
[1728813980662,30.535984,147.95,147.89,2.51167754]
[1728813980855,30.535984,147.95,147.86,1.35246432]
[1728813981052,30.535984,147.95,147.87,3.86288337]
[1728813981247,30.535984,147.95,147.88,2.51048161]
[1728813981449,30.535984,147.95,147.89,2.51039208]
[1728813981670,30.535984,147.95,147.87,1.35240176]
[1728813981858,30.535984,147.95,147.86,3.34893104]
[1728813981859,30.535984,147.95,147.88,2.5098832]
[1728813982059,30.535984,147.95,147.89,2.5098832]
[1728813982374,23.776884,147.95,147.86,7.21121372]
[1728813982573,30.536084,147.95,147.87,2.5098832]
[1728813982780,30.536084,147.95,147.86,1.35239948]
[1728813982781,30.536084,147.95,147.88,2.5098832]
[1728813983075,30.536084,147.95,147.89,2.5098832]
[1728813983374,30.536084,147.95,147.87,2.5098832]
[1728813983571,30.536084,147.95,147.88,2.5098832]
[1728813983759,30.536084,147.95,147.89,2.5098832]
[1728813984075,30.536084,147.95,147.87,4.70133113]
[1728813984275,30.536084,147.95,147.88,2.50969505]
[1728813984478,30.536084,147.95,147.89,2.50969505]
[1728813984654,23.776884,147.95,147.88,2.50969505]
[1728813984979,23.776884,147.95,147.89,2.50969505]
[1728813985273,23.1545,147.96,147.88,2.50969505]
[1728813985475,23.1545,147.96,147.89,2.50969505]
[1728813985671,23.1545,147.96,147.88,2.50969505]
[1728813985891,23.1545,147.96,147.89,2.50969505]
[1728813986175,23.1545,147.96,147.88,2.50969505]
[1728813986176,29.9131,147.96,147.88,2.50969505]
[1728813986385,29.9131,147.96,147.89,2.50969505]
[1728813986583,29.9131,147.96,147.88,2.50969505]
[1728813986756,29.9131,147.96,147.89,2.50969505]
[1728813987073,29.9131,147.96,147.88,2.50969505]
[1728813987373,29.9131,147.96,147.88,1.35223067]
[1728813987673,29.9131,147.96,147.88,3.86192572]
[1728813987876,23.1545,147.96,147.88,3.86192572]
[1728813988079,23.1545,147.96,147.88,1.35223067]
[1728813988262,23.1545,147.96,147.87,22.50969505]
[1728813988574,23.1545,147.96,147.88,3.86192347]
[1728813988771,23.1545,147.96,147.89,2.50969505]
[1728813988984,23.1545,147.96,147.88,1.35222842]
[1728813989290,29.913,147.96,147.89,2.50629084]
[1728813989785,30.536284,147.95,147.89,2.50629084]
[1728813989960,30.536284,147.95,147.88,2.50629084]
[1728813990475,23.776884,147.95,147.88,2.50629084]
[1728813990681,6.7598,147.94,147.86,2.50629084]
[1728813990867,6.7598,147.94,147.87,2.50629084]
[1728813991068,6.7598,147.94,147.86,2.50629084]
[1728813991384,6.7598,147.94,147.87,2.50629084]
[1728813991575,6.7598,147.94,147.86,2.50629084]
[1728813991770,6.7598,147.94,147.87,2.50629084]
[1728813992077,6.7598,147.94,147.86,2.50629084]
[1728813992386,6.7598,147.94,147.87,2.50629084]
[1728813992558,6.7598,147.94,147.86,2.50629084]
[1728813992870,23.776884,147.95,147.86,2.50629084]
[1728813993056,6.7604,147.92,147.86,2.50629084]
[1728813999083,46.504884,147.91,147.85,2.50629084]
[1728813999287,46.504884,147.91,147.83,2.50629084]
[1728813999483,46.504884,147.91,147.84,2.50629084]
[1728813999669,6.7615,147.9,147.83,2.50629084]
[1728813999862,6.7615,147.9,147.84,2.50629084]
[1728814000070,6.7615,147.9,147.81,2.50629084]
[1728814000384,23.776884,147.89,147.82,2.50629084]
[1728814000587,23.776884,147.89,147.83,2.50425238]
[1728814000891,23.776884,147.89,147.81,2.50425238]
[1728814001191,23.776884,147.89,147.82,3.85703938]
[1728814001494,23.776884,147.89,147.83,2.50425238]
[1728814001676,23.776884,147.9,147.83,2.50425238]
[1728814001874,23.776884,147.9,147.84,3.85693441]
[1728814002070,23.776884,147.9,147.84,1.35268203]
[1728814002265,23.776884,147.9,147.83,2.50425238]
[1728814002587,23.776884,147.9,147.84,2.50425238]
[1728814002782,15.967,147.91,147.83,2.50425238]
[1728814003168,22.7282,147.91,147.83,2.50425238]
[1728814003390,22.7282,147.91,147.82,2.50425238]
[1728814003566,22.7282,147.91,147.83,2.50425238]
[1728814003892,22.7282,147.91,147.84,2.50455843]
[1728814004086,22.7282,147.91,147.82,2.50455843]
[1728814004292,22.7282,147.91,147.83,2.50455843]
[1728814004583,23.776884,147.9,147.82,3.85726556]
[1728814004784,23.776884,147.9,147.83,2.50455843]
[1728814006189,23.776884,147.9,147.82,2.50455843]
[1728814006388,23.776884,147.9,147.83,2.50455843]
[1728814006694,23.776884,147.9,147.82,2.50455843]
[1728814006869,23.776884,147.9,147.83,2.50455843]
[1728814007194,23.776884,147.9,147.82,2.50455843]
[1728814007390,23.776884,147.9,147.83,2.50455843]
[1728814007587,23.776884,147.9,147.84,2.50455843]
[1728814007793,23.776884,147.9,147.82,3.85758724]
[1728814007969,23.776884,147.9,147.83,2.50485446]
[1728814008174,23.776884,147.9,147.84,2.50485446]
[1728814008369,23.776884,147.9,147.83,2.50485446]
[1728814008569,23.776884,147.9,147.84,2.50485446]
[1728814008879,23.776884,147.9,147.83,2.50485446]
[1728814009196,23.776884,147.9,147.84,2.50485446]
[1728814009371,23.776884,147.9,147.83,2.50485446]
[1728814009688,23.776884,147.9,147.84,2.50485446]
[1728814009889,23.776884,147.9,147.83,2.50485446]
[1728814010073,23.776884,147.9,147.82,1.35273278]
[1728814010074,23.776884,147.9,147.84,2.50485446]
[1728814010275,23.776884,147.9,147.83,2.50485446]
[1728814010477,23.776884,147.9,147.84,2.50485446]
[1728814010698,23.776884,147.9,147.83,2.50485446]
[1728814010900,23.776884,147.9,147.84,2.50485446]
[1728814011071,23.776884,147.9,147.82,1.35273278]
[1728814011072,23.776884,147.9,147.83,2.50485446]
[1728814011267,23.776884,147.9,147.84,2.50485446]
[1728814011481,23.776884,147.9,147.83,2.50485446]
[1728814011701,23.776884,147.9,147.82,1.35273278]
[1728814012003,23.776884,147.9,147.83,2.50525865]
[1728814012211,23.776884,147.9,147.84,2.50525865]
[1728814012413,23.776884,147.9,147.82,1.35273278]
[1728814012414,23.776884,147.9,147.83,2.50525865]
[1728814012708,23.776884,147.9,147.84,3.85803557]
[1728814012908,23.776884,147.9,147.82,3.85802773]
[1728814013110,23.776884,147.9,147.83,2.50535015]
[1728814013291,23.776884,147.9,147.84,2.50535015]
[1728814014213,15.967,147.91,147.84,2.50535015]
[1728814015711,15.967,147.91,147.83,1.35267764]
[1728814016010,15.967,147.91,147.84,3.8583571]
[1728814016214,15.967,147.91,147.84,1.35261526]
[1728814016396,15.967,147.91,147.83,2.50573557]
[1728814016708,15.967,147.91,147.81,20.0]
[1728814016709,15.967,147.91,147.84,3.85835095]
[1728814016891,15.967,147.91,147.84,1.35261538]
[1728814017210,15.967,147.91,147.83,3.85835078]
[1728814017403,15.967,147.91,147.84,2.50573557]
[1728814018108,23.776884,147.9,147.85,2.50573557]
[1728814018306,23.776884,147.9,147.82,2.50573557]
[1728814018608,23.776884,147.9,147.83,2.50573557]
[1728814018809,23.776884,147.9,147.84,2.50573557]
[1728814019014,23.776884,147.9,147.82,2.50573557]
[1728814019190,36.905284,147.9,147.83,2.50573557]
[1728814019394,36.905284,147.9,147.84,2.50573557]
[1728814019593,36.905284,147.9,147.82,2.50573557]
[1728814019913,36.905284,147.9,147.83,2.50651776]
[1728814020125,36.905284,147.9,147.84,2.50651776]
[1728814020300,36.905284,147.9,147.82,2.50651776]
[1728814020497,36.905284,147.9,147.83,2.50651776]
[1728814020706,30.143884,147.9,147.84,2.50651776]
[1728814021010,30.143884,147.9,147.82,2.50651776]
[1728814021214,30.143884,147.9,147.83,2.50651776]
[1728814021417,30.143884,147.9,147.81,20.0]
[1728814021418,30.143884,147.9,147.84,2.50651776]
[1728814021591,30.143884,147.9,147.82,2.50651776]
[1728814021791,30.143884,147.9,147.83,2.50651776]
[1728814022011,30.143884,147.9,147.84,2.50651776]
[1728814022312,30.143884,147.9,147.82,2.50651776]
[1728814022496,30.143884,147.9,147.83,2.50651776]
[1728814022697,30.143884,147.9,147.84,2.5065136]
[1728814022906,30.143884,147.9,147.85,2.5065136]
[1728814023108,30.143884,147.9,147.82,2.5065136]
[1728814023312,30.143884,147.9,147.83,2.5065136]
[1728814023514,30.143884,147.9,147.84,2.5065136]
[1728814023696,30.143884,147.9,147.85,2.5065136]
[1728814023893,30.143884,147.9,147.67,33.73825748]
[1728814023894,23.776884,147.87,147.82,2.5065136]
[1728814024121,6.7626,147.87,147.78,2.5065136]
[1728814024289,6.7626,147.87,147.79,2.5065136]
[1728814024488,6.7626,147.87,147.8,2.5065136]
[1728814024692,6.7626,147.87,147.81,2.5065136]
[1728814024918,6.7626,147.87,147.78,2.5065136]
[1728814025130,6.7626,147.87,147.79,2.5065136]
[1728814025302,6.7626,147.87,147.8,2.5065136]
[1728814025619,6.7626,147.87,147.81,2.5065136]
[1728814025825,15.2769,147.86,147.79,2.5065136]
[1728814026119,15.2769,147.86,147.8,2.5065136]
[1728814026322,15.2769,147.86,147.81,2.5065136]
[1728814026618,15.2769,147.86,147.78,20.0]
[1728814026830,15.2769,147.86,147.79,2.50845341]
[1728814027138,15.2769,147.86,147.78,20.0]
[1728814027139,15.2769,147.86,147.8,2.50845341]
[1728814027420,15.2769,147.86,147.81,2.50845341]
[1728814027792,15.2769,147.86,147.8,2.50845341]
[1728814028014,15.2769,147.86,147.81,2.50845341]
[1728814028219,15.2769,147.86,147.8,2.50845341]
[1728814028524,15.2769,147.86,147.81,2.50845341]
[1728814028690,15.2769,147.86,147.8,2.50845341]
[1728814029023,21.6439,147.9,147.81,3.86132353]
[1728814029193,21.6439,147.9,147.82,2.50845341]
[1728814029393,21.6439,147.9,147.83,23.86114248]
[1728814029623,21.6439,147.9,147.84,2.50845341]
[1728814030416,21.6439,147.9,147.85,2.50845341]
[1728814030616,21.6439,147.9,147.84,2.50845341]
[1728814030923,21.6439,147.9,147.85,3.86114202]
[1728814031117,21.6439,147.9,147.85,1.35268861]
[1728814031324,21.6439,147.9,147.84,2.50780817]
[1728814031516,21.6439,147.9,147.85,3.86029518]
[1728814031718,21.6439,147.9,147.85,1.35248701]
[1728814031920,21.6439,147.9,147.84,2.50780817]
[1728814032120,21.6439,147.9,147.85,3.86028802]
[1728814032433,27.8752,147.94,147.83,2.50780817]
[1728814032611,27.8752,147.94,147.84,2.50780817]
[1728814032909,27.8752,147.94,147.85,2.50780817]
[1728814033113,27.8752,147.94,147.83,2.50780817]
[1728814033413,27.8752,147.94,147.84,2.50780817]
[1728814033606,27.8752,147.94,147.82,20.0]
[1728814033607,23.776884,147.93,147.85,2.50780817]
[1728814033812,23.776884,147.93,147.83,2.50780817]
[1728814034114,23.776884,147.93,147.84,2.50780817]
[1728814034320,23.776884,147.93,147.85,2.50780817]
[1728814034503,23.776884,147.93,147.86,2.50780817]
[1728814034712,23.776884,147.93,147.83,23.776884]
[1728814035014,23.776884,147.93,147.84,2.50953268]
[1728814035203,23.776884,147.93,147.85,3.86208365]
[1728814035204,30.536884,147.93,147.85,3.86208365]
[1728814035522,30.536884,147.93,147.86,2.50953268]
[1728814036029,30.536884,147.93,147.83,2.50953268]
[1728814036216,30.536884,147.93,147.84,2.50953268]
[1728814036416,30.536884,147.93,147.82,20.0]
[1728814036417,30.536884,147.93,147.85,2.50953268]
[1728814036603,30.536884,147.93,147.86,2.50953268]
[1728814036928,30.536884,147.93,147.83,2.50953268]
[1728814037124,30.536884,147.93,147.84,2.50953268]
[1728814037426,30.536884,147.93,147.85,2.50953268]
[1728814037615,30.536884,147.93,147.86,2.50953268]
[1728814037809,30.536884,147.93,147.83,2.50953268]
[1728814038007,30.536884,147.93,147.84,2.50953268]
[1728814038206,30.536884,147.93,147.85,2.50953268]
[1728814038404,30.536884,147.93,147.86,2.50953268]
[1728814038602,30.536884,147.93,147.83,2.50953268]
[1728814038798,23.776884,147.93,147.84,2.50857844]
[1728814039005,23.776884,147.93,147.82,20.0]
[1728814039006,6.7608,147.91,147.85,2.50857844]
[1728814039222,6.7608,147.91,147.86,2.50857844]
[1728814039427,6.7608,147.91,147.83,2.50857844]
[1728814039615,6.7608,147.91,147.84,2.50857844]
[1728814039818,23.776884,147.9,147.85,2.50857844]
[1728814041103,6.7623,147.88,147.78,17.40373449]
[1728814041306,12.7898,147.89,147.79,21.35280682]
[1728814041727,12.7898,147.89,147.79,20.0]
[1728814042227,12.7898,147.89,147.79,21.35280649]
[1728814043000,12.7898,147.89,147.8,2.50849476]
[1728814043227,6.7625,147.88,147.81,2.50849476]
[1728814043524,6.7628,147.87,147.82,2.50849476]
[1728814043729,30.539184,147.88,147.78,2.50849476]
[1728814044028,30.539184,147.88,147.79,2.50849476]
[1728814044227,30.539184,147.88,147.8,2.50849476]
[1728814044530,30.539184,147.88,147.81,2.50916727]
[1728814044711,30.539184,147.88,147.82,2.50916727]
[1728814044911,30.539184,147.88,147.79,2.50916727]
[1728814045152,30.539184,147.88,147.8,2.50916727]
[1728814045427,30.539184,147.88,147.81,2.50914154]
[1728814045632,30.539184,147.88,147.82,2.50914154]
[1728814045814,30.539184,147.88,147.79,2.50914154]
[1728814046017,23.776884,147.88,147.8,2.50914154]
[1728814046208,12.7916,147.85,147.81,2.50914154]
[1728814046409,30.540984,147.84,147.78,2.50914154]
[1728814046609,30.540984,147.84,147.79,2.50914154]
[1728814046817,30.540984,147.84,147.76,2.50914154]
[1728814047026,15.0874,147.83,147.77,2.50914154]
[1728814047204,15.0874,147.83,147.78,2.50914154]
[1728814047402,15.0874,147.83,147.76,2.50914154]
[1728814047634,15.0874,147.83,147.77,2.50914154]
[1728814047803,15.0874,147.83,147.78,2.50914154]
[1728814048009,15.0874,147.83,147.76,2.50914154]
[1728814048210,15.0874,147.83,147.77,2.50914154]
[1728814048411,15.0874,147.83,147.76,2.50914154]
[1728814048630,15.0874,147.83,147.77,2.50914154]
[1728814048936,21.8519,147.83,147.76,2.50914154]
[1728814049241,21.8519,147.83,147.77,2.50914154]
[1728814049409,21.8519,147.83,147.75,0.8764326]
[1728814049738,21.8519,147.83,147.76,2.50894633]
[1728814051040,6.4119,147.82,147.76,2.50894633]
[1728814051215,13.1769,147.82,147.75,0.8764326]
[1728814053838,6.7664,147.79,147.75,0.8764326]
[1728814054220,30.542684,147.81,147.75,0.8764326]
[1728814054810,6.766,147.8,147.75,0.8764326]
[1728814057126,23.776884,147.79,147.75,0.8764326]
[1728814058638,6.7655,147.81,147.75,0.8764326]
[1728814059045,23.776884,147.8,147.75,0.8764326]
[1728814066654,6.7655,147.81,147.75,0.8764326]
[1728814066950,23.776884,147.81,147.75,0.8764326]
[1728814070450,30.542384,147.81,147.75,0.8764326]
[1728814076764,6.766,147.8,147.75,0.8764326]
[1728814088955,6.7667,147.79,147.75,0.8764326]
[1728814097367,30.542384,147.81,147.75,0.8764326]
[1728814102179,23.776884,147.81,147.75,0.8764326]
[1728814102472,6.7659,147.8,147.75,0.8764326]
[1728814106270,6.7664,147.79,147.75,0.8764326]
[1728814107286,6.7664,147.79,147.76,2.5174694]
[1728814107459,6.7664,147.79,147.75,0.8764326]
[1728814107659,6.7664,147.79,147.76,2.51746944]
[1728814107879,6.7664,147.79,147.75,0.8764326]
[1728814108071,6.7664,147.79,147.76,2.51746843]
[1728814108272,6.7664,147.79,147.75,0.8764326]
[1728814108587,6.7664,147.79,147.76,2.51827638]
[1728814108764,6.7664,147.79,147.75,0.8764326]
[1728814109077,6.7664,147.79,147.76,2.51827806]
[1728814109277,6.7664,147.79,147.75,0.8764326]
[1728814109485,6.7664,147.79,147.76,2.51830392]
[1728814109661,6.7664,147.79,147.75,0.8764326]
[1728814109862,6.7664,147.79,147.76,2.51901335]
[1728814110064,6.7664,147.79,147.75,0.8764326]
[1728814110272,6.7664,147.79,147.76,5.88985102]
[1728814110489,6.7664,147.79,147.75,0.8764326]
[1728814110784,6.7664,147.79,147.76,2.5198172]
[1728814110986,6.7664,147.79,147.75,0.8764326]
[1728814111188,6.7664,147.79,147.76,5.89055806]
[1728814111488,6.7664,147.79,147.75,0.8764326]
[1728814111679,6.7664,147.79,147.76,5.89108017]
[1728814111877,6.7664,147.79,147.75,0.8764326]
[1728814112082,6.7664,147.79,147.76,2.52001733]
[1728814112282,6.7664,147.79,147.77,2.52049731]
[1728814112478,6.7664,147.79,147.76,3.37109665]
[1728814112694,6.7664,147.79,147.77,2.52050365]
[1728814112878,6.7664,147.79,147.76,3.37109665]
[1728814113076,6.7664,147.79,147.77,2.52050365]
[1728814113282,6.766,147.8,147.76,3.37110701]
[1728814113478,6.766,147.8,147.77,2.52110192]
[1728814113679,6.766,147.8,147.75,0.8764326]
[1728814113880,6.766,147.8,147.76,2.52110378]
[1728814114068,6.766,147.8,147.77,2.52110378]
[1728814114268,6.766,147.8,147.75,0.8764326]
[1728814114466,6.766,147.8,147.76,2.52113913]
[1728814114671,6.766,147.8,147.77,2.52113913]
[1728814114972,6.766,147.8,147.75,0.8764326]
[1728814115174,6.766,147.8,147.76,2.52113719]
[1728814115381,6.766,147.8,147.77,2.52113719]
[1728814115571,6.766,147.8,147.75,0.8764326]
[1728814115773,6.766,147.8,147.76,2.52109913]
[1728814115972,6.766,147.8,147.77,2.52109913]
[1728814116198,6.766,147.8,147.75,0.8764326]
[1728814116375,6.766,147.8,147.76,2.52110807]
[1728814116694,6.766,147.8,147.77,2.52110807]
[1728814116887,6.766,147.8,147.75,0.8764326]
[1728814117087,6.766,147.8,147.76,5.89218111]
[1728814117292,6.766,147.8,147.77,2.52110807]
[1728814117593,6.766,147.8,147.76,3.3710659]
[1728814117796,6.766,147.8,147.77,2.52105164]
[1728814117992,6.766,147.8,147.76,3.37106667]
[1728814118200,6.766,147.8,147.77,2.52109584]
[1728814118374,6.766,147.8,147.75,0.8764326]
[1728814118693,6.766,147.8,147.76,5.89202902]
[1728814118898,6.4119,147.82,147.77,2.52102937]
[1728814119073,6.4119,147.82,147.78,5.89115418]
[1728814119394,6.4119,147.82,147.79,2.52102937]
[1728814119595,6.4119,147.82,147.76,3.36722433]
[1728814119896,6.4119,147.82,147.77,5.88639035]
[1728814120097,6.4119,147.82,147.78,5.88639035]
[1728814120398,6.4119,147.82,147.79,2.51916602]
[1728814120595,6.4119,147.82,147.76,3.36591259]
[1728814120775,6.4119,147.82,147.77,5.88446384]
[1728814120975,6.4119,147.82,147.78,5.88446384]
[1728814121181,6.4119,147.82,147.79,2.51855125]
[1728814121375,6.4119,147.82,147.77,3.36501642]
[1728814121588,6.4119,147.82,147.78,2.51811635]
[1728814121788,6.4119,147.82,147.79,2.51811635]
[1728814121977,6.4119,147.82,147.77,3.36496027]
[1728814122288,6.4119,147.82,147.78,2.51811635]
[1728814122493,6.4119,147.82,147.75,2.2297813]
[1728814122494,6.4119,147.82,147.79,2.51811635]
[1728814122708,6.4119,147.82,147.77,3.36422754]
[1728814122998,6.4119,147.82,147.78,2.51770094]
[1728814123293,6.4119,147.82,147.79,2.51770094]
[1728814123497,6.4119,147.82,147.77,3.36425137]
[1728814123700,6.4119,147.82,147.78,2.51734312]
[1728814123876,6.4119,147.82,147.79,2.51734312]
[1728814124084,6.4119,147.82,147.76,3.36425137]
[1728814124301,6.4119,147.82,147.77,5.88127045]
[1728814124517,6.4119,147.82,147.78,2.51701908]
[1728814124685,6.4119,147.82,147.79,2.51701908]
[1728814124890,6.4119,147.82,147.76,3.36425137]
[1728814125103,13.1769,147.82,147.77,5.88125658]
[1728814125312,13.1769,147.82,147.78,2.51700521]
[1728814125599,13.1769,147.82,147.79,2.51700521]
[1728814125801,13.1769,147.82,147.76,3.36425137]
[1728814125996,13.1769,147.82,147.77,2.51669803]
[1728814126204,13.1769,147.82,147.78,2.51669803]
[1728814126495,13.1769,147.82,147.75,0.8764326]
[1728814126701,13.1769,147.82,147.76,2.51642117]
[1728814126900,13.1769,147.82,147.77,5.87874465]
[1728814127215,13.1769,147.82,147.78,2.51642117]
[1728814127392,13.1769,147.82,147.76,3.36232348]
[1728814127593,13.1769,147.82,147.77,5.87841277]
[1728814127794,13.1769,147.82,147.78,2.51608929]
[1728814127992,13.1769,147.82,147.77,3.36232348]
[1728814128220,13.1769,147.82,147.78,2.51619776]
[1728814128418,13.1769,147.82,147.76,3.36232348]
[1728814128610,13.1769,147.82,147.77,2.51596437]
[1728814128830,13.1769,147.82,147.78,2.51596437]
[1728814129007,13.1769,147.82,147.76,3.36232348]
[1728814129194,13.1769,147.82,147.77,2.51591257]
[1728814129394,13.1769,147.82,147.78,2.51591257]
[1728814129608,13.1769,147.82,147.76,3.36232348]
[1728814129806,6.4119,147.82,147.77,2.51572739]
[1728814129993,6.4119,147.82,147.78,2.51572739]
[1728814130203,6.4119,147.82,147.77,1.35333805]
[1728814130416,6.4119,147.82,147.78,2.5155327]
[1728814130596,6.4119,147.82,147.76,20.0]
[1728814130796,6.4119,147.82,147.77,2.51553439]
[1728814131003,6.4119,147.82,147.78,2.51553439]